[Event "Anderssen Festival 2019"]
[Site "Wroclaw"]
[Date "2019.08.08"]
[Round "5.7"]
[White "Skliarov, Viktor"]
[Black "Szajda, Marcin"]
[Result "1-0"]
[ECO "A39"]
[WhiteElo "2360"]
[BlackElo "1955"]
[Annotator "NA"]
[PlyCount "115"]
[EventDate "2019.08.05"]
[EventType "swiss"]
[EventCountry "POL"]
[SourceTitle "playchess.com"]
[Source "ChessBase"]
[SourceQuality "1"]
[TimeControl "40/5400+30:900+30"]

1. c4 {[%emt 0:00:00]} c5 {[%emt 0:10:30]} 2. Nc3 {[%emt 0:00:00]} Nc6 {[%emt 0:00:37]} 3. g3 {[%emt 0:00:00]} g6 {[%emt 0:00:58]} 4. Bg2 {[%emt 0:00:42]} Bg7 {[%emt 0:00:06]} 5. Nf3 {[%emt 0:00:14]} Nf6 {[%emt 0:04:01]} 6. O-O {[%emt 0:00:07]} O-O {[%emt 0:03:40]} 7. d4 {[%emt 0:00:06]} cxd4 {[%emt 0:01:24]} 8. Nxd4 {[%emt 0:00:05]} Nxd4 {[%emt 0:06:59]} 9. Qxd4 {[%emt 0:00:07]} d6 {[%emt 0:00:21]} 10. Rd1 {[%emt 0:01:58]} a6 {[%emt 0:07:11]} 11. Qh4 {[%emt 0:02:25]} Qc7 {[%emt 0:02:50]} 12. Bg5 {[%emt 0:09:14]} Be6 {[%emt 0:04:56]} 13. b3 {[%emt 0:01:20]} Rfe8 {[%emt 0:14:08]} 14. Rac1 {[%emt 0:01:03]} Rab8 {[%emt 0:07:26]} 15. Na4 {[%emt 0:16:08]} b6 {[%emt 0:03:58]} 16. Nc3 {[%emt 0:01:36]} Qc5 {[%emt 0:06:58]} 17. Ne4 {[%emt 0:15:20]} Nxe4 {[%emt 0:00:59]} 18. Bxe4 {[%emt 0:00:06]} f6 {[%emt 0:03:01]} 19. Be3 {[%emt 0:01:07]} Qc8 {[%emt 0:01:13]} 20. Bd5 {[%emt 0:02:23]} Kh8 {[%emt 0:03:18]} 21. Qd4 {[%emt 0:02:39]} Bg4 {[%emt 0:08:20]} 22. Qd2 {[%emt 0:01:12]} a5 {[%emt 0:02:43]} 23. a3 {[%emt 0:00:56]} Bd7 {[%emt 0:00:47]} 24. h4 {[%emt 0:00:58]} Bg4 {[%emt 0:01:32]} 25. Kh2 {[%emt 0:01:29]} Rf8 {[%emt 0:00:25]} 26. Bd4 {[%emt 0:04:26]} Bd7 {[%emt 0:01:33]} 27. b4 {[%emt 0:04:43]} axb4 {[%emt 0:00:06]} 28. axb4 {[%emt 0:00:05]} Ba4 {[%emt 0:02:38]} 29. Rh1 {[%emt 0:01:01]} Bc6 {[%emt 0:00:11]} 30. b5 {[%emt 0:01:25]} Bd7 {[%emt 0:01:29]} 31. h5 {[%emt 0:01:20]} gxh5 {[%emt 0:00:32]} 32. Kg2 {[%emt 0:00:27]} Be8 {[%emt 0:00:06]} 33. Qe3 {[%emt 0:02:28]} Qd8 {[%emt 0:00:05]} 34. Be6 {[%emt 0:03:41]} Bg6 {[%emt 0:00:07]} 35. Ra1 {[%emt 0:03:28]} f5 {[%emt 0:00:33]} 36. Ra7 {[%emt 0:00:21]} Bxd4 {[%emt 0:01:13]} 37. Qxd4+ {[%emt 0:00:05]} Rf6 {[%emt 0:00:04]} 38. Rd7 {[%emt 0:00:48]} Qf8 {[%emt 0:00:59]} 39. Ra1 {[%emt 0:00:24]} Be8 {[%emt 0:00:54]} 40. Rc7 {[%emt 0:00:00]} Bf7 {[%emt 0:00:00]} 41. Qxf6+ {[%emt 0:07:20]} exf6 {[%emt 0:00:38]} 42. Rxf7 {[%emt 0:00:03]} Qh6 {[%emt 0:07:16]} 43. Bxf5 {[%emt 0:01:05]} Rf8 {[%emt 0:00:03]} 44. Rxh7+ {[%emt 0:04:08]} Qxh7 {[%emt 0:00:06]} 45. Bxh7 {[%emt 0:00:03]} Kxh7 {[%emt 0:00:09]} 46. Ra7+ {[%emt 0:00:06]} Kg6 {[%emt 0:00:06]} 47. Rc7 {[%emt 0:00:05]} Kf5 {[%emt 0:01:06]} 48. Rc6 {[%emt 0:00:15]} Ke5 {[%emt 0:00:03]} 49. Rxb6 {[%emt 0:00:22]} Rc8 {[%emt 0:00:44]} 50. Rc6 {[%emt 0:00:07]} Rb8 {[%emt 0:00:13]} 51. e3 {[%emt 0:00:43]} f5 {[%emt 0:00:23]} 52. Kf3 {[%emt 0:00:35]} Rh8 {[%emt 0:00:12]} 53. b6 {[%emt 0:03:05]} Rb8 {[%emt 0:00:41]} 54. c5 {[%emt 0:00:29]} dxc5 {[%emt 0:00:20]} 55. Rxc5+ {[%emt 0:00:05]} Kf6 {[%emt 0:00:07]} 56. Rb5 {[%emt 0:00:05]} Rb7 {[%emt 0:00:15]} 57. Kf4 {[%emt 0:00:17]} Kg6 {[%emt 0:00:04]} 58. f3 {[%emt 0:00:27]} 1-0

[Event "Anderssen Festival 2019"]
[Site "Wroclaw"]
[Date "2019.08.08"]
[Round "5.8"]
[White "Krawiecki, Stanislaw"]
[Black "Nowak, Mikolaj"]
[Result "0-1"]
[ECO "B07"]
[WhiteElo "1923"]
[BlackElo "2230"]
[Annotator "NA"]
[PlyCount "142"]
[EventDate "2019.08.05"]
[EventType "swiss"]
[EventCountry "POL"]
[SourceTitle "playchess.com"]
[Source "ChessBase"]
[SourceQuality "1"]
[TimeControl "40/5400+30:900+30"]

1. d4 {[%emt 0:00:00]} d6 {[%emt 0:00:00]} 2. e4 {[%emt 0:02:20]} g6 {[%emt 0:00:43]} 3. Bd3 {[%emt 0:00:11]} Bg7 {[%emt 0:00:36]} 4. c3 {[%emt 0:00:30]} Nf6 {[%emt 0:00:21]} 5. f4 {[%emt 0:00:56]} O-O {[%emt 0:00:41]} 6. Nf3 {[%emt 0:00:30]} b6 {[%emt 0:02:30]} 7. Be3 {[%emt 0:02:56]} Bb7 {[%emt 0:01:54]} 8. Nbd2 {[%emt 0:01:13]} d5 {[%emt 0:04:20]} 9. e5 {[%emt 0:03:07]} Ne4 {[%emt 0:00:47]} 10. Ng5 {[%emt 0:10:15]} Nxg5 {[%emt 0:05:23]} 11. fxg5 {[%emt 0:00:47]} f5 {[%emt 0:06:16]} 12. exf6 {[%emt 0:17:46]} exf6 {[%emt 0:00:30]} 13. O-O {[%emt 0:00:11]} Qe7 {[%emt 0:08:45]} 14. Re1 {[%emt 0:02:46]} Nc6 {[%emt 0:13:58]} 15. gxf6 {[%emt 0:04:16]} Qxf6 {[%emt 0:00:30]} 16. Nf3 {[%emt 0:00:05]} Rae8 {[%emt 0:03:44]} 17. Qd2 {[%emt 0:03:23]} Qd6 {[%emt 0:05:23]} 18. Bh6 {[%emt 0:03:13]} Bc8 {[%emt 0:03:59]} 19. Bxg7 {[%emt 0:03:07]} Kxg7 {[%emt 0:00:30]} 20. Rxe8 {[%emt 0:03:23]} Rxe8 {[%emt 0:00:30]} 21. Bb5 {[%emt 0:01:03]} Rf8 {[%emt 0:02:05]} 22. Bxc6 {[%emt 0:01:02]} Qxc6 {[%emt 0:00:30]} 23. Qg5 {[%emt 0:03:08]} Kg8 {[%emt 0:18:45]} 24. Re1 {[%emt 0:02:20]} Bf5 {[%emt 0:04:05]} 25. Qe7 {[%emt 0:10:27]} h6 {[%emt 0:02:00]} 26. Qe3 {[%emt 0:04:32]} Kg7 {[%emt 0:01:14]} 27. Qe7+ {[%emt 0:01:50]} Kg8 {[%emt 0:00:30]} 28. Qh4 {[%emt 0:05:15]} g5 {[%emt 0:02:05]} 29. Qg3 {[%emt 0:00:10]} Be4 {[%emt 0:02:27]} 30. h4 {[%emt 0:03:52]} Qg6 {[%emt 0:07:11]} 31. hxg5 {[%emt 0:01:08]} Rf5 {[%emt 0:01:03]} 32. Qh3 {[%emt 0:04:02]} hxg5 33. Nd2 {[%emt 0:01:02]} Rf7 34. Nxe4 {[%emt 0:00:48]} dxe4 35. Qg4 {[%emt 0:00:10]} Qf6 36. Qe2 {[%emt 0:00:30]} Qf5 37. Rf1 {[%emt 0:00:11]} Qd5 38. Rxf7 {[%emt 0:00:58]} Kxf7 39. b3 {[%emt 0:00:16]} Kg6 40. Qg4 {[%emt 0:00:30]} Qf5 41. Qg3 Qf4 42. Qh3 Kf6 43. Qh8+ Ke7 44. Qg7+ Kd6 45. Qg6+ Kd7 46. d5 Qe5 47. c4 e3 48. Qf7+ Kc8 49. Kf1 Qa1+ 50. Ke2 Qxa2+ 51. Kxe3 Qxb3+ 52. Kd4 Qb2+ 53. Kd3 Qe5 54. Qg6 a5 55. Qc6 Qf5+ 56. Ke2 Qe4+ 57. Kf2 Kb8 58. Kf1 g4 59. Kf2 Qf4+ 60. Ke2 Qe4+ 61. Kf2 Qf4+ 62. Ke2 g3 63. Qe8+ Ka7 64. Qc6 Qe4+ 65. Kd1 Qd3+ 66. Ke1 Qe3+ 67. Kd1 Qg1+ 68. Kd2 Qxg2+ 69. Kd3 Qf3+ 70. Kc2 Qf4 71. Kb3 Qd6 0-1

[Event "Anderssen Festival 2019"]
[Site "Wroclaw"]
[Date "2019.08.08"]
[Round "5.9"]
[White "Snihur, Piotr"]
[Black "Kawalko, Adam"]
[Result "1-0"]
[ECO "E10"]
[WhiteElo "2256"]
[BlackElo "1920"]
[Annotator "NA"]
[PlyCount "97"]
[EventDate "2019.08.05"]
[EventType "swiss"]
[EventCountry "POL"]
[SourceTitle "playchess.com"]
[Source "ChessBase"]
[SourceQuality "1"]
[TimeControl "40/5400+30:900+30"]

1. d4 {[%emt 0:00:00]} Nf6 {[%emt 0:00:12]} 2. Nf3 {[%emt 0:00:16]} e6 {[%emt 0:00:15]} 3. c4 {[%emt 0:00:46]} c5 {[%emt 0:01:08]} 4. d5 {[%emt 0:05:26]} b5 {[%emt 0:01:43]} 5. dxe6 {[%emt 0:00:52]} fxe6 {[%emt 0:00:30]} 6. cxb5 {[%emt 0:00:30]} d5 {[%emt 0:00:30]} 7. e3 {[%emt 0:02:30]} Bd6 {[%emt 0:04:51]} 8. Be2 {[%emt 0:01:02]} O-O {[%emt 0:01:13]} 9. O-O {[%emt 0:02:00]} Bb7 {[%emt 0:03:13]} 10. Nbd2 {[%emt 0:02:58]} e5 {[%emt 0:02:26]} 11. e4 {[%emt 0:02:41]} Kh8 {[%emt 0:04:10]} 12. Qc2 {[%emt 0:05:13]} d4 {[%emt 0:04:00]} 13. Bd3 {[%emt 0:04:00]} Nbd7 {[%emt 0:01:33]} 14. Nc4 {[%emt 0:01:23]} Qe7 {[%emt 0:02:52]} 15. Bg5 {[%emt 0:04:10]} Nb6 {[%emt 0:04:19]} 16. Nfd2 {[%emt 0:07:27]} h6 {[%emt 0:01:13]} 17. Bh4 {[%emt 0:00:57]} g5 {[%emt 0:03:54]} 18. Bg3 {[%emt 0:00:30]} Nxc4 {[%emt 0:05:19]} 19. Nxc4 {[%emt 0:00:52]} Nd7 {[%emt 0:04:40]} 20. Rac1 {[%emt 0:01:55]} Rac8 {[%emt 0:04:10]} 21. a4 {[%emt 0:02:00]} Nb6 {[%emt 0:03:13]} 22. Nd2 {[%emt 0:03:13]} Qh7 {[%emt 0:05:12]} 23. a5 {[%emt 0:16:49]} c4 {[%emt 0:07:55]} 24. Bxc4 {[%emt 0:00:42]} Nxc4 {[%emt 0:00:05]} 25. Nxc4 {[%emt 0:00:05]} Bxe4 {[%emt 0:00:42]} 26. Qd1 {[%emt 0:03:07]} Rxc4 {[%emt 0:05:32]} 27. Rxc4 {[%emt 0:00:32]} Bd3 {[%emt 0:00:11]} 28. Rxd4 {[%emt 0:02:15]} exd4 {[%emt 0:04:04]} 29. Bxd6 {[%emt 0:00:30]} Re8 {[%emt 0:03:13]} 30. Re1 {[%emt 0:01:50]} Rxe1+ {[%emt 0:01:08]} 31. Qxe1 {[%emt 0:00:10]} Qe4 {[%emt 0:00:21]} 32. Qxe4 {[%emt 0:00:47]} Bxe4 {[%emt 0:00:30]} 33. Be5+ {[%emt 0:00:11]} Kg8 {[%emt 0:00:05]} 34. Bxd4 {[%emt 0:00:31]} Bd3 {[%emt 0:00:30]} 35. Bxa7 {[%emt 0:00:21]} Bxb5 {[%emt 0:00:06]} 36. f3 {[%emt 0:00:57]} Kf7 {[%emt 0:00:05]} 37. Kf2 {[%emt 0:00:53]} Ke6 {[%emt 0:00:30]} 38. Ke3 {[%emt 0:00:52]} Kd5 {[%emt 0:00:57]} 39. b4 {[%emt 0:00:26]} h5 {[%emt 0:00:37]} 40. Bc5 {[%emt 0:01:03]} g4 {[%emt 0:00:32]} 41. fxg4 {[%emt 0:15:58]} hxg4 {[%emt 0:15:30]} 42. Kf4 {[%emt 0:00:57]} Bf1 {[%emt 0:00:30]} 43. Kxg4 {[%emt 0:00:58]} Bxg2 {[%emt 0:00:30]} 44. Kf5 {[%emt 0:01:13]} Bh3+ {[%emt 0:00:30]} 45. Kf6 {[%emt 0:00:16]} Kc6 {[%emt 0:00:41]} 46. a6 {[%emt 0:00:30]} Kc7 {[%emt 0:00:06]} 47. b5 {[%emt 0:01:08]} Kb8 {[%emt 0:00:41]} 48. b6 {[%emt 0:00:10]} Ka8 {[%emt 0:00:27]} 49. b7+ {[%emt 0:00:37]} 1-0

[Event "Anderssen Festival 2019"]
[Site "Wroclaw"]
[Date "2019.08.08"]
[Round "5.10"]
[White "Pawicka, Magdalena"]
[Black "Zgadzaj, Rafal"]
[Result "0-1"]
[ECO "B06"]
[WhiteElo "1700"]
[BlackElo "2133"]
[Annotator "NA"]
[PlyCount "124"]
[EventDate "2019.08.05"]
[EventType "swiss"]
[EventCountry "POL"]
[SourceTitle "playchess.com"]
[Source "ChessBase"]
[SourceQuality "1"]
[TimeControl "40/5400+30:900+30"]

1. e4 {[%emt 0:00:00]} d6 {[%emt 0:00:00]} 2. d4 {[%emt 0:00:30]} g6 {[%emt 0:00:11]} 3. Nc3 {[%emt 0:00:42]} a6 {[%emt 0:00:10]} 4. Be3 {[%emt 0:01:28]} b5 {[%emt 0:01:49]} 5. f3 {[%emt 0:02:25]} Nd7 {[%emt 0:01:53]} 6. Qd2 {[%emt 0:02:55]} c5 {[%emt 0:03:17]} 7. O-O-O {[%emt 0:11:22]} c4 {[%emt 0:04:10]} 8. Nce2 {[%emt 0:09:12]} Qc7 {[%emt 0:04:05]} 9. Kb1 {[%emt 0:08:05]} Bg7 {[%emt 0:05:33]} 10. h4 {[%emt 0:04:21]} h5 {[%emt 0:01:23]} 11. Nh3 {[%emt 0:05:48]} Ngf6 {[%emt 0:01:02]} 12. Bf4 {[%emt 0:04:25]} Bb7 {[%emt 0:01:03]} 13. Qe3 {[%emt 0:14:34]} Rc8 {[%emt 0:10:40]} 14. Ng5 {[%emt 0:05:54]} e5 {[%emt 0:02:37]} 15. Bg3 {[%emt 0:00:58]} O-O {[%emt 0:01:07]} 16. f4 {[%emt 0:06:15]} Ng4 {[%emt 0:01:49]} 17. Qc1 {[%emt 0:01:12]} Rce8 {[%emt 0:10:56]} 18. fxe5 {[%emt 0:02:47]} dxe5 {[%emt 0:00:21]} 19. dxe5 {[%emt 0:02:05]} Ndxe5 {[%emt 0:03:03]} 20. Nf4 {[%emt 0:02:57]} c3 {[%emt 0:01:59]} 21. b3 {[%emt 0:00:27]} Qc5 {[%emt 0:02:36]} 22. Nd3 {[%emt 0:02:15]} Nxd3 {[%emt 0:01:03]} 23. Bxd3 {[%emt 0:00:16]} f6 {[%emt 0:02:10]} 24. Nh3 {[%emt 0:00:30]} Bh6 {[%emt 0:02:41]} 25. Bf4 {[%emt 0:00:31]} Bxf4 {[%emt 0:02:47]} 26. Nxf4 {[%emt 0:00:16]} Kg7 {[%emt 0:01:55]} 27. e5 {[%emt 0:01:55]} Nxe5 {[%emt 0:02:05]} 28. Rhe1 {[%emt 0:01:29]} Nxd3 {[%emt 0:06:22]} 29. Rxd3 {[%emt 0:00:52]} Be4 {[%emt 0:01:29]} 30. Rd7+ {[%emt 0:00:47]} Rf7 {[%emt 0:00:53]} 31. Qd1 {[%emt 0:02:11]} Qf5 {[%emt 0:18:44]} 32. Rxf7+ {[%emt 0:02:07]} Kxf7 {[%emt 0:00:30]} 33. Ne2 {[%emt 0:01:13]} Bxg2 {[%emt 0:01:08]} 34. Nxc3 {[%emt 0:00:42]} Rxe1 {[%emt 0:00:57]} 35. Qxe1 {[%emt 0:00:30]} Qf1 {[%emt 0:00:30]} 36. Qxf1 {[%emt 0:00:21]} Bxf1 {[%emt 0:00:38]} 37. Kc1 {[%emt 0:00:05]} g5 {[%emt 0:01:03]} 38. hxg5 {[%emt 0:01:09]} fxg5 {[%emt 0:01:08]} 39. Kd2 {[%emt 0:00:52]} Kg6 {[%emt 0:01:03]} 40. Ke3 {[%emt 0:00:30]} Bg2 {[%emt 0:01:19]} 41. Kf2 {[%emt 0:15:37]} Bc6 {[%emt 0:15:58]} 42. Ne2 {[%emt 0:00:21]} g4 43. c4 {[%emt 0:00:14]} b4 44. Nd4 {[%emt 0:01:19]} Bd7 45. c5 {[%emt 0:01:35]} h4 46. c6 {[%emt 0:00:58]} Bc8 47. c7 {[%emt 0:00:47]} Kf6 48. Nc6 {[%emt 0:01:03]} Ke6 49. Nxb4 {[%emt 0:00:16]} Kd6 50. Nd3 Kxc7 51. Nf4 Kd6 52. Ng6 h3 53. Kg3 Kc5 54. Ne5 Kb4 55. Nc4 Be6 56. Nd6 Ka3 57. Kh2 Kxa2 58. b4 Bd7 59. Ne4 Ka3 60. Nc5 Bb5 61. Kg3 Kxb4 62. Ne4 Bd7 0-1

[Event "Anderssen Festival 2019"]
[Site "Wroclaw"]
[Date "2019.08.08"]
[Round "5.11"]
[White "Pokusinski, Antoni"]
[Black "Lugovskoy, Maxim"]
[Result "0-1"]
[ECO "A84"]
[WhiteElo "1671"]
[BlackElo "2425"]
[Annotator "NA"]
[PlyCount "48"]
[EventDate "2019.08.05"]
[EventType "swiss"]
[EventCountry "POL"]
[SourceTitle "playchess.com"]
[Source "ChessBase"]
[SourceQuality "1"]
[TimeControl "40/5400+30:900+30"]

1. d4 {[%emt 0:00:00]} e6 {[%emt 0:12:01]} 2. c4 {[%emt 0:00:00]} b6 {[%emt 0:00:52]} 3. Nf3 {[%emt 0:00:04]} Bb7 {[%emt 0:00:00]} 4. g3 {[%emt 0:00:08]} f5 {[%emt 0:00:37]} 5. Bg2 {[%emt 0:00:15]} Nf6 {[%emt 0:00:05]} 6. O-O {[%emt 0:00:31]} Be7 {[%emt 0:00:15]} 7. b3 {[%emt 0:01:21]} O-O {[%emt 0:00:06]} 8. Nbd2 {[%emt 0:00:28]} a5 {[%emt 0:02:24]} 9. a3 {[%emt 0:04:15]} d6 {[%emt 0:06:04]} 10. Bb2 {[%emt 0:00:12]} Qe8 {[%emt 0:00:42]} 11. Qc2 {[%emt 0:06:57]} Qh5 {[%emt 0:00:38]} 12. c5 {[%emt 0:08:01]} Bd5 {[%emt 0:03:10]} 13. cxb6 {[%emt 0:06:09]} cxb6 {[%emt 0:03:10]} 14. Nh4 {[%emt 0:08:05]} Ne4 {[%emt 0:08:59]} 15. Nxe4 {[%emt 0:04:38]} fxe4 {[%emt 0:01:20]} 16. Bxe4 {[%emt 0:00:50]} Bxh4 {[%emt 0:00:02]} 17. Bxd5 {[%emt 0:00:26]} exd5 {[%emt 0:00:21]} 18. gxh4 {[%emt 0:00:14]} Nd7 {[%emt 0:01:55]} 19. Qd3 {[%emt 0:02:44]} Rae8 {[%emt 0:01:21]} 20. Rae1 {[%emt 0:01:34]} Rf4 {[%emt 0:00:31]} 21. Kh1 {[%emt 0:02:11]} Rxh4 {[%emt 0:00:05]} 22. Qg3 {[%emt 0:01:48]} Re6 {[%emt 0:00:03]} 23. f3 {[%emt 0:02:38]} Rg6 {[%emt 0:00:04]} 24. Qf2 {[%emt 0:00:07]} Rh6 {[%emt 0:00:03]} 0-1

[Event "Anderssen Festival 2019"]
[Site "Wroclaw"]
[Date "2019.08.08"]
[Round "5.12"]
[White "Seredyn, Dominik"]
[Black "Wieczorek, Zbigniew"]
[Result "1/2-1/2"]
[ECO "E67"]
[WhiteElo "1737"]
[BlackElo "2235"]
[Annotator "NA"]
[PlyCount "67"]
[EventDate "2019.08.05"]
[EventType "swiss"]
[EventCountry "POL"]
[SourceTitle "playchess.com"]
[Source "ChessBase"]
[SourceQuality "1"]
[TimeControl "40/5400+30:900+30"]

1. Nf3 {[%emt 0:00:00]} g6 {[%emt 0:00:01]} 2. c4 {[%emt 0:00:00]} Bg7 {[%emt 0:00:08]} 3. Nc3 {[%emt 0:00:00]} d6 {[%emt 0:00:19]} 4. g3 {[%emt 0:00:14]} e5 {[%emt 0:00:11]} 5. d4 {[%emt 0:00:07]} Nd7 {[%emt 0:00:23]} 6. Bg2 {[%emt 0:01:37]} Ngf6 {[%emt 0:00:10]} 7. dxe5 {[%emt 0:02:23]} dxe5 {[%emt 0:00:14]} 8. Bg5 {[%emt 0:00:19]} h6 {[%emt 0:04:16]} 9. Bxf6 {[%emt 0:00:56]} Qxf6 {[%emt 0:01:03]} 10. Nd5 {[%emt 0:01:14]} Qd8 {[%emt 0:00:29]} 11. O-O {[%emt 0:02:32]} O-O {[%emt 0:00:45]} 12. Nd2 {[%emt 0:03:21]} c6 {[%emt 0:02:57]} 13. Nc3 {[%emt 0:00:24]} f5 {[%emt 0:00:22]} 14. Qc2 {[%emt 0:03:57]} Qe7 {[%emt 0:01:17]} 15. Rab1 {[%emt 0:02:12]} e4 {[%emt 0:00:48]} 16. e3 {[%emt 0:05:29]} h5 {[%emt 0:01:22]} 17. Ne2 {[%emt 0:05:47]} Ne5 {[%emt 0:01:35]} 18. Rfd1 {[%emt 0:03:41]} Be6 {[%emt 0:00:44]} 19. b3 {[%emt 0:06:13]} h4 {[%emt 0:01:22]} 20. f4 {[%emt 0:09:08]} exf3 {[%emt 0:08:47]} 21. Nxf3 {[%emt 0:00:24]} hxg3 {[%emt 0:00:21]} 22. Nxg3 {[%emt 0:01:30]} Nxf3+ {[%emt 0:02:56]} 23. Bxf3 {[%emt 0:00:19]} Qc5 {[%emt 0:00:10]} 24. Qf2 {[%emt 0:01:51]} Rad8 {[%emt 0:00:55]} 25. Ne2 {[%emt 0:09:30]} Bh6 {[%emt 0:04:25]} 26. Rd4 {[%emt 0:05:35]} Qe5 {[%emt 0:01:15]} 27. Qg2 {[%emt 0:09:47]} Qxe3+ {[%emt 0:03:11]} 28. Kh1 {[%emt 0:00:24]} Rxd4 {[%emt 0:00:19]} 29. Qxg6+ {[%emt 0:02:10]} Bg7 {[%emt 0:02:29]} 30. Nxd4 {[%emt 0:00:16]} Bc8 {[%emt 0:01:24]} 31. Rd1 {[%emt 0:05:11]} Rd8 {[%emt 0:00:09]} 32. Kg2 {[%emt 0:00:42]} Rxd4 {[%emt 0:07:26]} 33. Rxd4 {[%emt 0:00:08]} Qxd4 {[%emt 0:00:04]} 34. Qe8+ {[%emt 0:00:12]} 1/2-1/2

[Event "Anderssen Festival 2019"]
[Site "Wroclaw"]
[Date "2019.08.08"]
[Round "5.13"]
[White "Socha, Kamil"]
[Black "Nguyen, Alex Dac-Vuong"]
[Result "1/2-1/2"]
[ECO "A05"]
[WhiteElo "1741"]
[BlackElo "2267"]
[Annotator "NA"]
[PlyCount "49"]
[EventDate "2019.08.05"]
[EventType "swiss"]
[EventCountry "POL"]
[SourceTitle "playchess.com"]
[Source "ChessBase"]
[SourceQuality "1"]
[TimeControl "40/5400+30:900+30"]

1. d4 {[%emt 0:04:46]} Nf6 {[%emt 0:00:00]} 2. Nf3 {[%emt 0:00:29]} c5 {[%emt 0:00:20]} 3. g3 {[%emt 0:00:16]} cxd4 {[%emt 0:01:03]} 4. Bg2 {[%emt 0:00:15]} d5 {[%emt 0:00:27]} 5. O-O {[%emt 0:00:10]} g6 {[%emt 0:08:54]} 6. b3 {[%emt 0:00:40]} Bg7 {[%emt 0:00:27]} 7. Bb2 {[%emt 0:00:10]} O-O {[%emt 0:00:53]} 8. Nxd4 {[%emt 0:01:02]} Re8 {[%emt 0:02:14]} 9. Nf3 {[%emt 0:05:42]} Nbd7 {[%emt 0:05:06]} 10. Nc3 {[%emt 0:00:38]} Nc5 {[%emt 0:03:08]} 11. Ne5 {[%emt 0:01:41]} Be6 {[%emt 0:08:24]} 12. Qd2 {[%emt 0:07:15]} Qc7 {[%emt 0:12:42]} 13. f4 {[%emt 0:02:55]} Qb6 {[%emt 0:01:59]} 14. Kh1 {[%emt 0:07:16]} Red8 {[%emt 0:01:35]} 15. e3 {[%emt 0:04:24]} Rac8 {[%emt 0:03:13]} 16. Qd4 {[%emt 0:02:05]} Nfe4 {[%emt 0:19:58]} 17. Rad1 {[%emt 0:04:40]} Nxc3 {[%emt 0:00:51]} 18. Bxc3 {[%emt 0:00:21]} Nd7 {[%emt 0:04:57]} 19. Rf2 {[%emt 0:10:05]} Qc7 {[%emt 0:04:02]} 20. Ba1 {[%emt 0:01:03]} Bg4 {[%emt 0:06:21]} 21. Rc1 {[%emt 0:00:32]} a6 {[%emt 0:02:16]} 22. h3 {[%emt 0:03:38]} Bf5 {[%emt 0:00:45]} 23. Qxd5 {[%emt 0:06:38]} Nxe5 {[%emt 0:01:37]} 24. Bxe5 {[%emt 0:00:12]} Bxe5 {[%emt 0:00:47]} 25. Qxe5 {[%emt 0:00:24]} 1/2-1/2

[Event "Anderssen Festival 2019"]
[Site "Wroclaw"]
[Date "2019.08.08"]
[Round "5.14"]
[White "Verwoert, Jef"]
[Black "Krawiec, Grzegorz"]
[Result "1/2-1/2"]
[ECO "A04"]
[WhiteElo "2034"]
[BlackElo "1816"]
[Annotator "NA"]
[PlyCount "40"]
[EventDate "2019.08.05"]
[EventType "swiss"]
[EventCountry "POL"]
[SourceTitle "playchess.com"]
[Source "ChessBase"]
[SourceQuality "1"]
[TimeControl "40/5400+30:900+30"]

1. Nf3 {[%emt 0:00:00]} c5 {[%emt 0:00:00]} 2. g3 {[%emt 0:00:31]} Nc6 {[%emt 0:00:07]} 3. Bg2 {[%emt 0:00:16]} e5 {[%emt 0:02:55]} 4. O-O {[%emt 0:01:07]} g6 {[%emt 0:00:30]} 5. Nc3 {[%emt 0:12:15]} d5 {[%emt 0:03:18]} 6. d3 {[%emt 0:05:28]} Bg7 {[%emt 0:04:00]} 7. e4 {[%emt 0:06:15]} d4 {[%emt 0:05:49]} 8. Ne2 {[%emt 0:06:16]} Nge7 {[%emt 0:02:00]} 9. h3 {[%emt 0:08:45]} O-O {[%emt 0:13:57]} 10. Nh4 {[%emt 0:00:47]} Be6 {[%emt 0:03:07]} 11. f4 {[%emt 0:00:52]} f5 {[%emt 0:00:11]} 12. fxe5 {[%emt 0:06:09]} Bxe5 {[%emt 0:03:08]} 13. Bh6 {[%emt 0:08:46]} Bg7 {[%emt 0:02:00]} 14. Qd2 {[%emt 0:01:08]} fxe4 {[%emt 0:01:59]} 15. Rxf8+ {[%emt 0:06:20]} Bxf8 {[%emt 0:00:06]} 16. dxe4 {[%emt 0:03:54]} Qd7 {[%emt 0:02:25]} 17. Bxf8 {[%emt 0:02:00]} Rxf8 {[%emt 0:00:06]} 18. Nf4 Ne5 {[%emt 0:00:30]} 19. Nxe6 Qxe6 {[%emt 0:00:30]} 20. Qa5 Qb6 {[%emt 0:00:30]} 1/2-1/2

[Event "Anderssen Festival 2019"]
[Site "Wroclaw"]
[Date "2019.08.08"]
[Round "5.15"]
[White "Czyz, Andrzej"]
[Black "Ochman, Sebastian"]
[Result "1-0"]
[ECO "A00"]
[WhiteElo "2000"]
[BlackElo "1789"]
[Annotator "NA"]
[PlyCount "71"]
[EventDate "2019.08.05"]
[EventType "swiss"]
[EventCountry "POL"]
[SourceTitle "playchess.com"]
[Source "ChessBase"]
[SourceQuality "1"]
[TimeControl "40/5400+30:900+30"]

1. b4 {[%emt 0:00:00]} e5 {[%emt 0:00:00]} 2. Bb2 {[%emt 0:00:00]} Bxb4 {[%emt 0:00:50]} 3. Bxe5 {[%emt 0:00:00]} Nf6 {[%emt 0:00:12]} 4. Nf3 {[%emt 0:00:17]} d5 {[%emt 0:01:20]} 5. e3 {[%emt 0:00:21]} O-O {[%emt 0:00:51]} 6. c4 {[%emt 0:01:41]} Nc6 {[%emt 0:04:43]} 7. Bb2 {[%emt 0:01:07]} Re8 {[%emt 0:04:23]} 8. cxd5 {[%emt 0:00:44]} Nxd5 {[%emt 0:00:39]} 9. Be2 {[%emt 0:00:13]} Bf5 {[%emt 0:07:29]} 10. O-O {[%emt 0:00:52]} a6 {[%emt 0:01:46]} 11. Nc3 {[%emt 0:01:49]} Nxc3 {[%emt 0:08:28]} 12. dxc3 {[%emt 0:02:43]} Bd6 {[%emt 0:00:37]} 13. Qb3 {[%emt 0:04:02]} Re6 {[%emt 0:18:57]} 14. Rfd1 {[%emt 0:06:50]} Be4 {[%emt 0:12:11]} 15. c4 {[%emt 0:10:30]} Qe7 {[%emt 0:07:48]} 16. Rac1 {[%emt 0:04:56]} Rg6 {[%emt 0:02:29]} 17. g3 {[%emt 0:06:05]} b6 {[%emt 0:04:10]} 18. Nd2 {[%emt 0:04:12]} Na5 {[%emt 0:03:49]} 19. Qc3 {[%emt 0:02:59]} f5 {[%emt 0:06:04]} 20. Nxe4 {[%emt 0:02:50]} fxe4 {[%emt 0:00:43]} 21. Qd4 {[%emt 0:06:46]} Rf8 {[%emt 0:01:26]} 22. Bf1 {[%emt 0:00:30]} Nc6 {[%emt 0:02:29]} 23. Qd5+ {[%emt 0:01:40]} Kh8 {[%emt 0:00:07]} 24. Bg2 {[%emt 0:00:38]} Re6 {[%emt 0:02:35]} 25. a3 {[%emt 0:06:07]} Nb8 {[%emt 0:02:40]} 26. Rc2 {[%emt 0:11:09]} Nd7 {[%emt 0:00:32]} 27. Bh3 {[%emt 0:02:12]} Rh6 {[%emt 0:04:05]} 28. Bxd7 {[%emt 0:01:00]} Qxd7 {[%emt 0:00:01]} 29. Qxe4 {[%emt 0:00:52]} Rxh2 {[%emt 0:01:51]} 30. Rxd6 {[%emt 0:05:19]} Qh3 {[%emt 0:01:12]} 31. Rd7 {[%emt 0:02:24]} Qxd7 {[%emt 0:00:06]} 32. Kxh2 {[%emt 0:00:08]} h6 {[%emt 0:00:43]} 33. Qg6 {[%emt 0:00:17]} Kg8 {[%emt 0:00:06]} 34. Rd2 {[%emt 0:02:05]} Qe7 {[%emt 0:00:32]} 35. Qc6 {[%emt 0:00:06]} Qf7 {[%emt 0:00:44]} 36. Qd5 {[%emt 0:00:47]} 1-0